Cogmind - Beta 10.1 @@@ ROGUE MODE // 2020.11.10 @ 13:18:35 Player: Michael Result: Self-destructed Performance ------------- Evolutions (8) 4000 Regions Visited (15) 3000 Robots Destroyed (131) 655 Value Destroyed (6649) 6649 Prototype IDs (28) 560 Alien Tech Used (0) 0 Bonus (2785) 2785 TOTAL SCORE: 17649 Bonus ------- High Alert Combat Kills 824 Follower Combat Kills 355 Entered Garrisons 400 Used RIF Installer 1000 Aligned with FarCom 300 Friendly Fire -94 Cogmind --------- Core Integrity 26/1450 Matter 295/300 Energy 100/100 System Corruption 11% Temperature Cool (0) Movement Core (50) Location -2/Research Parts ------- > --- POWER (1) -------- (None) > --- PROPULSION (4) --- (None) > --- UTILITY (13) ----- Enhanced Optical Array Advanced Signal Interpreter Advanced Hacking Suite Relay Coupler [NC] (26) > --- WEAPON (5) ------- (None) > --- INVENTORY (4) ---- Precision Assault Rifle Field Lobotomy Kit Peak State ------------ > --- POWER ------------ Compact Particle Reactor > --- PROPULSION ------- Armored Huge Wheel Armored Huge Wheel > --- UTILITY ---------- Advanced Cryofiber Web High-capacity Storage Unit High-capacity Storage Unit High-capacity Storage Unit Matter Compressor Enhanced Optical Array Advanced Signal Interpreter Advanced Targeting Computer Matter Filter Improved Hacking Suite Advanced Hacking Suite Advanced Hacking Suite Relay Coupler [NC] > --- WEAPON ----------- Coil Gun Heavy Machine Gun KE Penetrator Railgun Hypervelocity Railgun > --- INVENTORY -------- Light Fission Core Light Fission Core Micro Fission Core Light Antimatter Reactor Particle Reactor Light Particle Reactor Centrium Wheel Advanced Cooling System Large Matter Pod Advanced Terrain Scan Processor Relay Coupler [NC] Precision Assault Rifle Coil Gun Coil Gun Hardcell Cannon Hardcell Cannon Hardcell Cannon Linear Accelerator Linear Accelerator Remote Datajack Field Lobotomy Kit Greatsword [Rating: 116] Favorites ----------- Power Light Nuclear Core Engine Ion Engine Power Core Light Nuclear Core Reactor Light Antimatter Reactor Propulsion Armored Huge Wheel Leg Aluminum Leg Wheel Armored Huge Wheel Utility High-capacity Storage Unit Device Advanced Cryofiber Web Storage High-capacity Storage Unit Processor Advanced Targeting Computer Hackware Advanced Hacking Suite Protection Medium Reactive Plating Weapon Heavy Assault Rifle Energy Gun Variable Charge Gun Energy Cannon EM Pulse Cannon Ballistic Gun Heavy Assault Rifle Ballistic Cannon Light Cannon Launcher Heavy Rocket Launcher Special Weapon Remote Datajack Slashing Weapon Greatsword Build | -11 -10 -10 -10 -9 -8 -8 -8 -7 -6 -5 -5 -5 -4 -3 -2 ------- Run | Scr Mat Min Exi Min Mat Gar Mat Fac Fac Fac Gar Fac Fac Res Res Slots Evolved 16 | . . . . . 4 . . 2 2 2 . . 2 2 2 Power . | . . . . . . . . . . . . . . . . Propulsion 2 | . . . . . 1 . . . 1 . . . . . . Utility 11 | . . . . . 2 . . 2 1 2 . . . 2 2 Weapon 3 | . . . . . 1 . . . . . . . 2 . . Parts Attached 272 | 6 16 . 7 2 8 24 5 15 10 58 16 32 12 16 45 Power 25 | 1 3 . . . . 3 . 1 1 2 . 3 1 1 9 Engine 2 | 1 1 . . . . . . . . . . . . . . Core 13 | . 2 . . . . 3 . 1 1 2 . 3 . . 1 Reactor 10 | . . . . . . . . . . . . . 1 1 8 Propulsion 35 | 2 5 . 4 1 2 5 1 1 2 4 2 3 2 . 1 Treads . | . . . . . . . . . . . . . . . . Leg 21 | 2 5 . 4 1 2 5 1 1 . . . . . . . Wheel 14 | . . . . . . . . . 2 4 2 3 2 . 1 Hover . | . . . . . . . . . . . . . . . . Flight . | . . . . . . . . . . . . . . . . Utility 78 | 1 4 . 3 1 2 5 . 7 4 21 1 9 1 8 11 Device 16 | . . . 1 . 1 3 . 2 1 1 . 1 . 4 2 Storage 13 | 1 3 . 1 . . 1 . . . 1 . 1 1 1 3 Processor 5 | . . . . . . . . 1 . 1 . 1 . 1 1 Hackware 16 | . . . . . . 1 . 1 2 3 1 5 . . 3 Protection 28 | . 1 . 1 1 1 . . 3 1 15 . 1 . 2 2 Artifact . | . . . . . . . . . . . . . . . . Weapon 134 | 2 4 . . . 4 11 4 6 3 31 13 17 8 7 24 Energy Gun 5 | . . . . . . . . . . 2 1 2 . . . Energy Cannon 10 | . . . . . . . . . . 4 3 3 . . . Ballistic Gun 52 | 2 2 . . . 1 8 3 1 . 9 2 5 6 4 9 Ballistic Cannon 26 | . 2 . . . 2 1 . 2 1 5 . . 1 2 10 Launcher 9 | . . . . . 1 2 1 1 . 1 2 . . . 1 Special Weapon 21 | . . . . . . . . 1 2 5 4 6 . . 3 Impact Weapon . | . . . . . . . . . . . . . . . . Slashing Weapon 11 | . . . . . . . . 1 . 5 1 1 1 1 1 Piercing Weapon . | . . . . . . . . . . . . . . . . Special Melee Weapon . | . . . . . . . . . . . . . . . . Unidentified Prototypes . | . . . . . . . . . . . . . . . . Parts Lost 63 | . 1 . . . . 4 . 2 . 10 5 7 . 1 33 Power 8 | . . . . . . . . . . 1 . 1 . . 6 Propulsion 11 | . . . . . . 2 . 1 . 1 2 2 . . 3 Utility 20 | . . . . . . 1 . 1 . 7 . 2 . . 9 Weapon 24 | . 1 . . . . 1 . . . 1 3 2 . 1 15 Highest Loss Streak 15 | . 1 . . . . 4 . 1 . 4 2 3 . 1 15 Average Slot Usage (%) 88 | . 96 100 100 100 89 99 100 94 87 85 69 78 86 89 84 Core 5 | . 9 14 14 14 9 9 9 7 6 5 5 5 . . . Leg 10 | . 28 28 28 28 27 26 27 23 16 1 . . . . . Wheel 6 | . . . . . . . . . 6 12 8 7 9 9 7 Device 4 | . . . . . 4 9 18 9 5 1 . 4 5 7 5 Storage 16 | . 24 14 14 14 9 16 18 15 13 16 17 17 15 18 16 Processor 5 | . . . . . . . . 6 6 5 5 8 10 10 12 Hackware 8 | . . . . . . . . 5 8 8 15 16 15 14 15 Protection 6 | . 3 14 14 14 13 9 . 5 8 15 . . . . 2 Ballistic Gun 10 | . 15 14 14 14 9 18 24 11 . 4 3 3 17 20 14 Ballistic Cannon 3 | . 9 14 14 14 17 7 2 2 . 1 . . . 1 4 Special Weapon 1 | . . . . . . . . 1 5 1 3 2 2 . . Slashing Weapon 1 | . . . . . . . . 2 6 3 1 2 2 . . Naked Turns . | . . . . . . . . . . . . . . . . Heaviest Build 161 | 11 32 32 48 48 54 83 82 107 109 125 93 97 110 154 161 Greatest Support 56 | 20 20 20 40 28 43 46 30 38 38 56 56 56 56 56 56 Greatest Overweight (x) 10 | . 1 1 2 2 1 2 2 3 10 5 3 3 3 2 10 Average Overweight (x) 1 | . . 1 1 1 1 1 2 2 3 2 1 2 1 1 2 Largest Inventory Capacity 28 | 6 12 10 12 12 12 20 20 20 20 20 20 20 20 28 28 Average Capacity 19 | 5 8 10 11 12 12 18 20 20 20 20 20 20 20 27 27 Most Carried 28 | 2 10 9 12 12 12 20 20 20 20 20 17 20 20 28 28 Average Carried 18 | . 7 9 10 11 10 17 19 19 19 19 15 17 19 24 23 Final Capacity 28 | 6 10 10 12 12 12 20 20 20 20 20 20 20 20 28 4 Final Carried 28 | 2 9 9 12 12 11 20 20 19 20 16 16 19 20 28 2 Class Distribution -------------------- 22% | Bothacker-Mutant 19% | Hauler-Mutant 13% | Mutant 12% | Hacker-Mutant 8% | Hacker-Skirmisher 7% | Hauler-Skirmisher 7% | Bothacker-Skirmisher 3% | Hauler-Tank Dominant Class ---------------- Mutant | -10/Materials Mutant | -10/Mines Mutant | -10/Exiles Mutant | -9/Mines Tank | -8/Materials Hauler-Skirmisher | -8/Garrison Bothacker-Skirmisher | -8/Materials Bothacker-Mutant | -7/Factory Bothacker-Mutant | -6/Factory Hauler-Mutant | -5/Factory Bothacker-Mutant | -5/Garrison Bothacker-Mutant | -5/Factory Hacker-Mutant | -4/Factory Hacker-Skirmisher | -3/Research Hacker-Mutant | -2/Research Resources | -11 -10 -10 -10 -9 -8 -8 -8 -7 -6 -5 -5 -5 -4 -3 -2 ----------- Run | Scr Mat Min Exi Min Mat Gar Mat Fac Fac Fac Gar Fac Fac Res Res Matter Collected 6293 | 219 425 . 183 30 138 530 326 170 211 1767 245 532 296 514 707 Remotely 435 | . . . . . 113 322 . . . . . . . . . Salvage Created 5609 | . 456 . . . 25 597 282 191 21 1511 374 741 296 420 695 Parts 293 | . 26 . . . 6 34 21 27 2 57 10 37 15 24 34 Haulers Intercepted 2 | . 1 . . . . . . . . 1 . . . . . Recyclers Shooed 7 | . 1 . . . . . 1 . . 3 . 1 1 . . Parts Field Recycled . | . . . . . . . . . . . . . . . . Retrieved Matter . | . . . . . . . . . . . . . . . . Parts Self-Destructed . | . . . . . . . . . . . . . . . . Prevented . | . . . . . . . . . . . . . . . . Kills | -11 -10 -10 -10 -9 -8 -8 -8 -7 -6 -5 -5 -5 -4 -3 -2 ------- Run | Scr Mat Min Exi Min Mat Gar Mat Fac Fac Fac Gar Fac Fac Res Res Combat Hostiles Destroyed 107 | . 13 . . . 3 16 7 9 . 20 11 7 5 7 9 Melee 5 | . . . . . . . . 1 . 2 . 2 . . . Guns 58 | . 8 . . . 1 10 4 1 . 9 . 4 5 7 9 Cannons 16 | . 5 . . . . 5 . . . 2 3 1 . . . AOE 26 | . . . . . 2 1 3 7 . 5 8 . . . . Classes Destroyed 14 | . 4 . . . . 2 1 3 . 2 . 1 . 1 . Worker 7 | . . . . . . . 2 . 1 1 . 1 . . 2 Builder 2 | . . . . . . . . . . 1 . 1 . . . Tunneler 2 | . . . . . . . . 1 . . . 1 . . . Hauler 2 | . 1 . . . . . . . . 1 . . . . . Recycler 8 | . 1 . . . . . 1 . . 4 . 2 . . . Operator 2 | . . . . . . . . 1 . . . . . . 1 Watcher 1 | . . . . . . . . . . . . 1 . . . Swarmer 33 | . 6 . . . 3 3 5 7 . 4 3 . . 2 . Grunt 29 | . 7 . . . . 6 . . . 3 8 . 1 . 4 Brawler 1 | . . . . . . . . . . . . . . 1 . Duelist 1 | . . . . . . 1 . . . . . . . . . Sentry 11 | . . . . . . 6 2 . . 3 . . . . . Hunter 8 | . . . . . . . . . . 4 . 3 . 1 . Programmer 24 | . . . . . . . . 2 . 6 . 4 4 3 5 Best Kill Streak 8 | . 4 . . . 2 5 4 8 1 4 6 3 2 3 7 Combat Bots Only 8 | . 4 . . . 2 5 3 8 . 4 6 2 2 3 6 Max Kills in Single Turn 3 | . 1 . . . 2 1 3 3 1 3 3 1 1 2 1 Gunslinging 1 | . . . . . . . . . . . . . . 1 . Exploded 3 | . . . . . 2 1 3 3 . 3 3 . . . . Melee 1 | . . . . . . . . 1 . 1 . 1 . . . Uniques/NPCs Destroyed . | . . . . . . . . . . . . . . . . Combat | -11 -10 -10 -10 -9 -8 -8 -8 -7 -6 -5 -5 -5 -4 -3 -2 -------- Run | Scr Mat Min Exi Min Mat Gar Mat Fac Fac Fac Gar Fac Fac Res Res Damage Taken 13757 | . 474 . . . 95 1020 228 450 10 2444 698 1390 281 931 5736 Core 2464 | . 42 . . . 13 105 60 53 . 234 119 246 42 126 1424 Absorbed by Shields 307 | . . . . . . 53 69 21 . 57 15 92 . . . Core Remaining (%) 83 | 100 . . . 83 . . 67 92 100 . . 40 96 90 . Volleys Fired 349 | . 45 . . . 5 46 23 14 5 82 21 33 9 23 43 Largest 5 | . 2 . . . 3 3 3 3 1 3 3 3 5 5 5 Hottest 540 | . 55 . . . 93 93 66 81 30 225 225 540 151 158 262 Shots Fired 905 | . 90 . . . 13 136 65 28 5 191 27 73 44 108 125 Gun 651 | . 56 . . . 4 101 63 18 . 113 4 51 44 106 91 Cannon 197 | . 34 . . . 8 34 . 3 . 64 11 13 . 2 28 Launcher 18 | . . . . . 1 1 2 3 . 4 6 . . . 1 Special 39 | . . . . . . . . 4 5 10 6 9 . . 5 Kinetic 769 | . 90 . . . 12 135 63 21 . 149 1 27 44 108 119 Thermal 54 | . . . . . . . . . . 5 12 37 . . . Explosive 18 | . . . . . 1 1 2 3 . 4 6 . . . 1 Electromagnetic 25 | . . . . . . . . . . 23 2 . . . . Robot Hit Streak 19 | . 9 . . . 4 19 9 5 5 19 19 10 6 15 13 Robot Miss Streak 6 | . 3 . . . 4 3 4 2 . 3 3 3 2 6 2 Penetration Max 1 | . . . . . . . . . . . . 1 . 1 1 Secondary Targets 3 | . . . . . . . 1 . . . . . . 1 1 Max Gunslinging Chain 1 | . . . . . . . 1 . . . . . . 1 1 Shots Hit Robots 625 | . 62 . . . 7 90 32 21 6 151 20 71 25 72 68 Core Hits 256 | . 26 . . . 3 38 16 17 1 54 25 19 11 17 29 Critical Hits 19 | . 1 . . . . 4 . . . 2 . 1 . 4 7 Critical Kills 4 | . 1 . . . . 1 . . . . . . . 1 1 Critical Parts Destroyed 15 | . . . . . . 3 . . . 2 . 1 . 3 6 Melee Attacks 92 | . . . . . . . . 11 6 30 6 29 3 3 4 Impact . | . . . . . . . . . . . . . . . . Slashing 92 | . . . . . . . . 11 6 30 6 29 3 3 4 Piercing . | . . . . . . . . . . . . . . . . Sneak Attacks 14 | . . . . . . . . 1 1 6 . 6 . . . Combat Hostiles . | . . . . . . . . . . . . . . . . Follow-up Attacks . | . . . . . . . . . . . . . . . . Damage Inflicted 16860 | . 647 . . . 114 1509 501 1081 146 4434 1413 2769 615 1693 1938 Guns 8148 | . 323 . . . 24 1075 347 123 . 1468 21 984 615 1693 1475 Cannons 2581 | . 324 . . . . 363 . 45 . 1076 234 333 . . 206 Explosions 2610 | . . . . . 90 71 154 558 . 555 957 . . . 225 Melee 3489 | . . . . . . . . 355 146 1335 201 1452 . . . Ramming 32 | . . . . . . . . . . . . . . . 32 Kinetic 8951 | . 647 . . . 24 1438 347 168 . 1994 21 323 615 1693 1681 Thermal 1246 | . . . . . . . . . . 69 183 994 . . . Explosive 2610 | . . . . . 90 71 154 558 . 555 957 . . . 225 Electromagnetic 532 | . . . . . . . . . . 481 51 . . . . Impact . | . . . . . . . . . . . . . . . . Slashing 3489 | . . . . . . . . 355 146 1335 201 1452 . . . Piercing . | . . . . . . . . . . . . . . . . Highest Corruption 13 | . . . . . . . 1 2 . 3 3 6 5 13 11 Average Corruption 4 | . . . . . . . 1 1 . 2 3 4 4 8 8 Corruption Purged . | . . . . . . . . . . . . . . . . Effects 143 | . . . . . . . 4 1 . 18 12 49 6 19 34 Message Errors 38 | . . . . . . . 1 . . 7 5 12 2 5 6 Matter Fused 20 | . . . . . . . . . . 1 1 12 1 2 3 Heat Flow Errors 14 | . . . . . . . . . . 1 2 6 . 3 2 Energy Discharges 16 | . . . . . . . . 1 . 2 1 7 1 2 2 Parts Rejected 2 | . . . . . . . . . . . . 1 . . 1 Data Loss (minor) 13 | . . . . . . . 2 . . 4 2 2 . . 3 Data Loss (major) 2 | . . . . . . . . . . . . 2 . . . Misfires 3 | . . . . . . . . . . . . . 1 1 1 Misdirections 6 | . . . . . . . . . . . . . . 2 4 Targeting Errors 27 | . . . . . . . 1 . . 3 1 7 1 4 10 Weapon Failures 2 | . . . . . . . . . . . . . . . 2 Overload Shots 14 | . . . . . . . . . . 2 3 9 . . . Overflow Damage 1167 | . . . . . . . . 160 . 501 5 465 . . 36 Projectiles 44 | . . . . . . . . . . 7 . 1 . . 36 Explosions 64 | . . . . . . . . 44 . 18 2 . . . . Melee 1059 | . . . . . . . . 116 . 476 3 464 . . . Knockbacks 14 | . . . . . . 3 . 2 . 5 . . . . 4 Impact 1 | . . . . . . . . . . . . . . . 1 Kinetic 13 | . . . . . . 3 . 2 . 5 . . . . 3 Secondary . | . . . . . . . . . . . . . . . . Self-Inflicted Damage 155 | . . . . . . . 24 101 . . 15 . . . 15 Shots 5 | . . . . . . . 1 2 . . 2 . . . . Rammed 2 | . . . . . . . . . . . . . . . 2 Targets Rammed 2 | . . . . . . . . . . . . . . . 2 Kicked . | . . . . . . . . . . . . . . . . Crushed . | . . . . . . . . . . . . . . . . Highest Temperature 438 | . 60 . . . 151 339 . 6 12 287 320 438 . 256 151 Average Temperature 91 | . 20 . . . 79 129 . 4 6 81 116 154 . 93 66 Received Heat Transfer 1468 | . 219 . . . . 437 30 . 6 293 147 . 12 . 324 Effects 5 | . . . . . . 3 . . . . 1 1 . . . Energy Bleed 3 | . . . . . . 1 . . . . 1 1 . . . Damage (minor) 2 | . . . . . . 2 . . . . . . . . . Siege Activations . | . . . . . . . . . . . . . . . . Robots Corrupted 2 | . . . . . . . . . . 2 . . . . . Combat Hostiles 2 | . . . . . . . . . . 2 . . . . . Parts Fried 4 | . . . . . . . . . . 4 . . . . . Impact Corruptions . | . . . . . . . . . . . . . . . . Robots Melted . | . . . . . . . . . . . . . . . . Combat Hostiles . | . . . . . . . . . . . . . . . . Parts Melted 2 | . . . . . . . . . . . . 2 . . . Heat Transferred 1547 | . . . . . . . . . . 87 222 1238 . . . Parts Sabotaged . | . . . . . . . . . . . . . . . . Parts Stolen . | . . . . . . . . . . . . . . . . Parts Stripped . | . . . . . . . . . . . . . . . . Power Chain Reactions . | . . . . . . . . . . . . . . . . Missiles Intercepted . | . . . . . . . . . . . . . . . . Alert | -11 -10 -10 -10 -9 -8 -8 -8 -7 -6 -5 -5 -5 -4 -3 -2 ------- Run | Scr Mat Min Exi Min Mat Gar Mat Fac Fac Fac Gar Fac Fac Res Res Peak Influence 1175 | . 245 78 . . 108 752 514 219 184 915 1175 678 105 195 202 Initial 640 | . . 78 . . . 70 366 179 107 32 640 616 88 34 24 Average 317 | . 98 78 . . 64 384 417 122 75 551 994 457 65 65 49 Maximum Alert Level 4 | . 1 . . . . 3 2 1 . 3 4 2 . . 1 Low Security (%) 50 | 100 84 100 . 100 100 32 . 80 100 3 . 11 100 100 98 Level 1 14 | . 15 . . . . 7 54 19 . 28 . 23 . . 1 Level 2 21 | . . . . . . 51 45 . . 27 9 65 . . . Level 3 11 | . . . . . . 8 . . . 39 47 . . . . Level 4 2 | . . . . . . . . . . . 43 . . . . Level 5 . | . . . . . . . . . . . . . . . . High Security . | . . . . . . . . . . . . . . . . Max Security . | . . . . . . . . . . . . . . . . Squads Dispatched 33 | . 5 . . 1 . . 1 2 3 8 . 6 2 2 3 Investigation 4 | . 1 . . 1 . . . . . . . 2 . . . Extermination 14 | . . . . . . . . 2 1 3 . 3 2 1 2 Reinforcement 12 | . 4 . . . . . 1 . . 4 . 1 . 1 1 Assault . | . . . . . . . . . . . . . . . . Garrison 3 | . . . . . . . . . 2 1 . . . . . Intercept . | . . . . . . . . . . . . . . . . Construction Impeded 2 | . . . . . . . 1 . . 1 . . . . . Haulers Reinforced 1 | . . . . . . . . . . 1 . . . . . Stealth | -11 -10 -10 -10 -9 -8 -8 -8 -7 -6 -5 -5 -5 -4 -3 -2 --------- Run | Scr Mat Min Exi Min Mat Gar Mat Fac Fac Fac Gar Fac Fac Res Res Distress Signals 14 | . 1 . . . 3 . 2 . 1 3 . 1 . 1 2 Communications Jammed . | . . . . . . . . . . . . . . . . Distress Signals . | . . . . . . . . . . . . . . . . Times Spotted 207 | . 22 . . . 10 18 14 16 7 40 19 18 7 10 26 Peak Tracking Total 12 | . 5 . . . 4 6 6 6 3 4 6 5 2 3 12 Tactical Retreats 10 | . 2 . . . . 3 2 1 . 1 . 1 . . . Traps | -11 -10 -10 -10 -9 -8 -8 -8 -7 -6 -5 -5 -5 -4 -3 -2 ------- Run | Scr Mat Min Exi Min Mat Gar Mat Fac Fac Fac Gar Fac Fac Res Res Traps Triggered 31 | . 1 . . . . 7 1 . . 2 7 5 1 3 4 Indirectly . | . . . . . . . . . . . . . . . . Trap Hack Attempts . | . . . . . . . . . . . . . . . . Triggered . | . . . . . . . . . . . . . . . . Disarmed . | . . . . . . . . . . . . . . . . Reprogrammed . | . . . . . . . . . . . . . . . . Reused . | . . . . . . . . . . . . . . . . Traps Extracted . | . . . . . . . . . . . . . . . . Installed . | . . . . . . . . . . . . . . . . Triggered 1 | . . . . . . . . . . 1 . . . . . Machines | -11 -10 -10 -10 -9 -8 -8 -8 -7 -6 -5 -5 -5 -4 -3 -2 ---------- Run | Scr Mat Min Exi Min Mat Gar Mat Fac Fac Fac Gar Fac Fac Res Res Machines Disabled 27 | . . . . . 1 3 . . . 16 3 1 1 1 1 Max in Single Turn 1 | . . . . . 1 1 . . . . 1 . 1 1 1 Garrison Access 5 | . . . . . . . . 1 . 1 . 2 . . 1 Garrison Relay 6 | . . . . . . 3 . . . . 3 . . . . Machines Sabotaged . | . . . . . . . . . . . . . . . . Garrisons Compromised . | . . . . . . . . . . . . . . . . Overloaded Fab Kills . | . . . . . . . . . . . . . . . . Fab Network Shutdowns 1 | . . . . . . . . . . 1 . . . . . Hacking | -11 -10 -10 -10 -9 -8 -8 -8 -7 -6 -5 -5 -5 -4 -3 -2 --------- Run | Scr Mat Min Exi Min Mat Gar Mat Fac Fac Fac Gar Fac Fac Res Res Machines Accessed 63 | . 3 . 2 1 2 . 2 5 5 12 . 15 7 3 6 Terminals 33 | . 3 . . . 1 . 2 3 3 4 . 8 4 2 3 Fabricators 5 | . . . . . . . . . . 2 . 2 1 . . Repair Stations 5 | . . . . . . . . . 1 2 . 1 1 . . Recycling Units 6 | . . . . . . . . 1 1 1 . 1 . 1 1 Scanalyzers 4 | . . . . . . . . . . 1 . 1 1 . 1 Garrison Access 7 | . . . . . 1 . . 1 . 2 . 2 . . 1 Total Hacks 141 | . 13 . 2 1 6 . 5 8 12 30 . 31 18 5 10 Successful 83 | . 5 . 2 1 4 . 3 4 7 20 . 15 14 2 6 Failed 58 | . 8 . . . 2 . 2 4 5 10 . 16 4 3 4 Catastrophic 5 | . 1 . . . . . 1 . 2 . . . . . 1 Database Lockouts . | . . . . . . . . . . . . . . . . Manual 46 | . 8 . 1 . 1 . 1 2 5 5 . 11 9 2 1 Terminals 90 | . 13 . . . 4 . 5 5 9 13 . 20 12 3 6 Fabricators 10 | . . . . . . . . . . 4 . 4 2 . . Repair Stations 12 | . . . . . . . . . 2 6 . 2 2 . . Recycling Units 8 | . . . . . . . . 2 1 1 . 1 . 2 1 Scanalyzers 10 | . . . . . . . . . . 4 . 2 2 . 2 Garrison Access 8 | . . . . . 2 . . 1 . 2 . 2 . . 1 Terminal Hacks 30 | . 4 . 2 1 3 . 2 . 3 4 . 4 5 . 2 Record 1 | . . . 1 . . . . . . . . . . . . Part Schematic 3 | . . . . . 1 . . . 1 . . . 1 . . Open Door 1 | . . . . 1 . . . . . . . . . . . Level Access Points 2 | . . . . . 1 . . . . . . . 1 . . Branch Access Points 2 | . 1 . . . . . . . . . . 1 . . . Emergency Access Points 1 | . 1 . . . . . . . . . . . . . . Terminal Index 2 | . . . . . . . . . . 1 . . 1 . . Unreport Threat 1 | . . . . . . . . . . . . 1 . . . Locate Traps 8 | . . . . . 1 . . . 2 2 . 1 1 . 1 Patrol Status 2 | . 1 . . . . . . . . . . . 1 . . Recall Extermination 2 | . . . . . . . . . . . . 1 . . 1 Hauler Manifests 1 | . . . . . . . 1 . . . . . . . . Zone Layout 3 | . 1 . . . . . 1 . . 1 . . . . . EX-Prototype ID Bank 1 | . . . 1 . . . . . . . . . . . . Fabricator Hacks 10 | . . . . . . . . . . 4 . 4 2 . . Load Schematic 5 | . . . . . . . . . . 2 . 2 1 . . Build 5 | . . . . . . . . . . 2 . 2 1 . . Repair Station Hacks 8 | . . . . . . . . . . 4 . 2 2 . . Scan Component 4 | . . . . . . . . . . 2 . 1 1 . . Repair 4 | . . . . . . . . . . 2 . 1 1 . . Recycling Unit Hacks 5 | . . . . . . . . 2 1 . . 1 . 1 . Process 2 | . . . . . . . . 1 . . . . . 1 . Retrieve Matter 1 | . . . . . . . . 1 . . . . . . . Retrieve Components 2 | . . . . . . . . . 1 . . 1 . . . Scanalyzer 9 | . . . . . . . . . . 4 . 1 2 . 2 Insert Component 7 | . . . . . . . . . . 3 . 1 1 . 2 Analyze 2 | . . . . . . . . . . 1 . . 1 . . Garrison Access Hacks 7 | . . . . . 1 . . 1 . 2 . 2 . . 1 Unlock Access 2 | . . . . . 1 . . . . 1 . . . . . Seal Access 5 | . . . . . . . . 1 . 1 . 2 . . 1 Unauthorized Hacks 14 | . 1 . . . . . 1 1 3 2 . 1 3 1 1 Terminals 14 | . 1 . . . . . 1 1 3 2 . 1 3 1 1 Assimilate 5 | . . . . . . . . . 2 1 . . 2 . . Botnet 9 | . 1 . . . . . 1 1 1 1 . 1 1 1 1 Fabricators . | . . . . . . . . . . . . . . . . Repair Stations . | . . . . . . . . . . . . . . . . Recycling Units . | . . . . . . . . . . . . . . . . Scanalyzers . | . . . . . . . . . . . . . . . . Garrison Access . | . . . . . . . . . . . . . . . . Data Cores Recovered 1 | . . . . . . . . 1 . . . . . . . Used 1 | . . . . . . . . 1 . . . . . . . Hacking Detections 48 | . 3 . . . 1 . 2 4 4 9 . 12 5 3 5 Full Trace Events . | . . . . . . . . . . . . . . . . Feedback Events . | . . . . . . . . . . . . . . . . Feedback Blocked . | . . . . . . . . . . . . . . . . Robot Schematics Acquired . | . . . . . . . . . . . . . . . . Robots Built . | . . . . . . . . . . . . . . . . Matter . | . . . . . . . . . . . . . . . . Time . | . . . . . . . . . . . . . . . . Total Robot Build Rating . | . . . . . . . . . . . . . . . . Part Schematics Acquired 4 | . . . . . 1 . . . 1 1 . . 1 . . Parts Built 4 | . . . . . . . . . . 1 . 2 1 . . Matter 738 | . . . . . . . . . . 212 . 424 102 . . Time 298 | . . . . . . . . . . 106 . 141 51 . . Total Part Build Rating 19 | . . . . . . . . . . 6 . 12 1 . . Parts Repaired 4 | . . . . . . . . . . 2 . 1 1 . . Time 152 | . . . . . . . . . . 60 . 70 22 . . Parts Recycled . | . . . . . . . . . . . . . . . . Recycled Matter 19 | . . . . . . . . 11 . . . . . 8 . Retrieved Matter 11 | . . . . . . . . 11 . . . . . . . Retrieved Components 4 | . . . . . . . . . 3 . . 1 . . . Parts Scanalyzed 3 | . . . . . . . . . . 1 . 1 1 . . Part Schematics Acquired 1 | . . . . . . . . . . 1 . . . . . Parts Damaged . | . . . . . . . . . . . . . . . . Bothacking | -11 -10 -10 -10 -9 -8 -8 -8 -7 -6 -5 -5 -5 -4 -3 -2 ------------ Run | Scr Mat Min Exi Min Mat Gar Mat Fac Fac Fac Gar Fac Fac Res Res Used RIF Installer 2 | . . . . . . 1 . . . . 1 . . . . Structural Interface 1 | . . . . . . . . . . . 1 . . . . Robots Hacked 23 | . . . . . . . . 2 3 6 3 6 . . 3 Non-combat 9 | . . . . . . . . 2 1 . . 3 . . 3 Combat 14 | . . . . . . . . . 2 6 3 3 . . . Robot Hacks Applied 24 | . . . . . . . . 2 3 6 4 6 . . 3 drop_inventory 1 | . . . . . . . . . . . . 1 . . . map_route 8 | . . . . . . . . 2 1 . . 2 . . 3 scatter_targeting 5 | . . . . . . . . . . 3 . 2 . . . overwrite_iff 5 | . . . . . . . . . . 1 4 . . . . formatsys_high 5 | . . . . . . . . . 2 2 . 1 . . . Relay Couplers Released 24 | . . . . . . 15 . . . . 9 . . . . Machine Destruction 24 | . . . . . . 15 . . . . 9 . . . . Attached 12 | . . . . . . 1 . 1 2 2 1 3 . . 2 Robots Rewired . | . . . . . . . . . . . . . . . . Allies Hacked . | . . . . . . . . . . . . . . . . Hacks Repelled . | . . . . . . . . . . . . . . . . Allies | -11 -10 -10 -10 -9 -8 -8 -8 -7 -6 -5 -5 -5 -4 -3 -2 -------- Run | Scr Mat Min Exi Min Mat Gar Mat Fac Fac Fac Gar Fac Fac Res Res Total Allies 16 | . . 1 . . . . . . 3 5 4 1 1 . 1 Largest Group 3 | . . 1 1 . . . . . 2 3 2 1 1 . . Highest-Rated Group 121 | . . 31 31 . . . . . 64 121 59 81 26 . . Highest-Rated Ally 81 | . . 31 31 . . . . . 32 54 30 81 26 . . Total Orders . | . . . . . . . . . . . . . . . . Ally Attacks 69 | . . . . . . . . . 12 29 17 11 . . . Total Damage 3013 | . . . . . . . . . 390 1943 354 326 . . . Kills 20 | . . . . . . . . . 1 15 4 . . . . Allies Corrupted 1 | . . . . . . . . . . . . 1 . . . Allies Melted . | . . . . . . . . . . . . . . . . Field Lobotomies 3 | . . . . . . . . . . 1 1 . . . 1 Intel | -11 -10 -10 -10 -9 -8 -8 -8 -7 -6 -5 -5 -5 -4 -3 -2 ------- Run | Scr Mat Min Exi Min Mat Gar Mat Fac Fac Fac Gar Fac Fac Res Res Robot Analysis Total . | . . . . . . . . . . . . . . . . Derelict Logs Recovered 2 | . . 1 . 1 . . . . . . . . . . . Drone Launches . | . . . . . . . . . . . . . . . . Drone Recoveries . | . . . . . . . . . . . . . . . . Exploration | -11 -10 -10 -10 -9 -8 -8 -8 -7 -6 -5 -5 -5 -4 -3 -2 ------------- Run | Scr Mat Min Exi Min Mat Gar Mat Fac Fac Fac Gar Fac Fac Res Res Turns Passed 13718 | 51 740 81 709 255 176 1217 513 871 778 2556 770 1805 964 1035 1197 Spaces Moved 8136 | 39 405 55 399 143 78 562 227 413 443 1557 511 1156 736 650 762 Core 37 | 8 . . . . . . . . . . . . . . 29 Treads . | . . . . . . . . . . . . . . . . Legs 2516 | 31 405 55 399 143 78 562 227 413 203 . . . . . . Wheels 5583 | . . . . . . . . . 240 1557 511 1156 736 650 733 Hover . | . . . . . . . . . . . . . . . . Flight . | . . . . . . . . . . . . . . . . Fastest Speed 50 | 50 120 150 140 150 150 150 180 180 120 106 110 110 110 110 50 Average Speed 132 | 105 129 150 174 173 150 157 180 185 152 115 119 120 110 119 120 Slowest Speed 210 | 120 150 150 180 180 150 180 180 210 180 130 130 130 130 120 190 Overloaded Moves . | . . . . . . . . . . . . . . . . Propulsion Burnouts . | . . . . . . . . . . . . . . . . Robots Hopped . | . . . . . . . . . . . . . . . . Cave-ins Triggered . | . . . . . . . . . . . . . . . . Exploration Rate (%) 34 | 4 69 16 72 33 10 66 29 16 16 45 71 36 24 19 29 Regions Visited 15 Branch Regions 3 Pre-discovered Areas 1 | . . . . 1 . . . . . . . . . . . Known Exits Taken 8 | . 1 . 1 1 1 . 1 . . 1 . . 1 1 . Unknown Exits Taken 5 | 1 . 1 . . . . . 1 1 . . 1 . . . Scrap Searched 1 | . . . . 1 . . . . . . . . . . . Spaces Dug 62 | . . . . . . . . 2 5 21 . 10 3 3 18 Terrain Destroyed 233 | . . . . . 7 2 10 64 5 45 50 13 4 7 26 Melee 41 | . . . . . . . . 2 5 15 . 9 3 3 4 Projectile 38 | . . . . . . . . . . 9 3 4 1 4 17 AOE 154 | . . . . . 7 2 10 62 . 21 47 . . . 5 Terrain Rammed . | . . . . . . . . . . . . . . . . Walls Destroyed . | . . . . . . . . . . . . . . . . Machines Disabled . | . . . . . . . . . . . . . . . . Actions | -11 -10 -10 -10 -9 -8 -8 -8 -7 -6 -5 -5 -5 -4 -3 -2 --------- Run | Scr Mat Min Exi Min Mat Gar Mat Fac Fac Fac Gar Fac Fac Res Res Total 10257 | 46 547 54 413 152 126 789 287 473 528 2100 632 1454 859 845 952 Wait 1103 | . 57 . . . 33 116 26 9 53 337 14 174 74 135 75 Move 8121 | 38 404 54 398 142 77 561 226 412 442 1556 510 1155 735 649 762 Hop . | . . . . . . . . . . . . . . . . Pick Up 100 | 2 11 . 3 3 2 10 3 3 6 13 8 10 9 12 5 Fast Attach 45 | 6 3 . 1 . . 3 . 5 3 5 . 10 3 2 4 Attach 92 | . 2 . 1 . 4 4 . 3 3 24 8 8 7 5 23 Detach 38 | . 2 . 1 . . 3 . 3 2 10 2 8 1 4 2 Swap 135 | . 11 . 5 2 4 17 5 7 4 29 8 14 2 9 18 Drop 87 | . 12 . 4 5 1 7 4 6 4 14 . 5 8 3 14 Fire 349 | . 45 . . . 5 46 23 14 5 82 21 33 9 23 43 Melee 92 | . . . . . . . . 11 6 30 6 29 3 3 4 Ram 2 | . . . . . . . . . . . . . . . 2 Kick . | . . . . . . . . . . . . . . . . Crush . | . . . . . . . . . . . . . . . . Escape Stasis 93 | . . . . . . 22 . . . . 55 8 8 . . Rewire . | . . . . . . . . . . . . . . . . Trap . | . . . . . . . . . . . . . . . . Miscellaneous . | . . . . . . . . . . . . . . . . Route ------- -11/Scrapyard -10/Materials (discovered 3 exits: [*Mat x2] / *Min) -10/Mines -10/Exiles (discovered 2 exits: *Min x2) -9/Mines (discovered 2 exits: *Mat x2) -8/Materials (discovered 4 exits: Fac x3 / Gar) -8/Garrison (discovered 3 exits: *Mat x3) -8/Materials -7/Factory (discovered 2 exits: *Fac / [*Low]) -6/Factory -5/Factory (discovered 6 exits: *Fac x3 / *Upp x2 / Gar) -5/Garrison (discovered 2 exits: *Fac x2) -5/Factory (discovered 5 exits: *Fac / *Upp x2 / Ext x2) -4/Factory (discovered 4 exits: *Res x4) -3/Research (discovered 3 exits: *Res / *Arm / [*Tes]) -2/Research (discovered 1 exit: [Acc]) History --------- Turn | Location | Event 5 | -11/Scrapyard | Discovered new exit (range 15) 52 | -11/Scrapyard | Entered Materials 178 | -10/Materials | Identified exit to Mines 316 | -10/Materials | Build established: Mutant 361 | -10/Materials | Discovered new exit (range 16) 580 | -10/Materials | Discovered new exit (range 15) 792 | -10/Materials | Entered Mines 830 | -10/Mines | Received a Mining Laser from a helpful Derelict 866 | -10/Mines | Deemed a non-threat by the Exiles lab entrance 866 | -10/Mines | Discovered new exit (range 5) 873 | -10/Mines | Entered Exiles 873 | -10/Exiles | Accompanied by 1 ally 874 | -10/Exiles | Identified exit to Mines 909 | -10/Exiles | Met 8R-AWN 935 | -10/Exiles | Met EX-HEX 1024 | -10/Exiles | Met EX-DEC 1197 | -10/Exiles | Met EX-BIN 1228 | -10/Exiles | Aligned with FarCom system 1230 | -10/Exiles | Given EX-Vault access code 1305 | -10/Exiles | Opened EX-Vault 1320 | -10/Exiles | Found Potential Leg 1322 | -10/Exiles | Found Potential Leg 1330 | -10/Exiles | Found Skeleton Box 1339 | -10/Exiles | Found Field Lobotomy Kit 1379 | -10/Exiles | Warned to stay clear of 0b10 Research branches 1582 | -10/Exiles | Left Exiles lab with Field Lobotomy Kit 1582 | -10/Exiles | Entered Mines 1599 | -9/Mines | Discovered new exit (range 5) 1604 | -9/Mines | Met a Derelict bent on vengeance 1631 | -9/Mines | Identified exit to Materials 1724 | -9/Mines | Learned location of Storage (-8) 1785 | -9/Mines | Met a Derelict shopkeep closing up shop 1837 | -9/Mines | Entered Materials 1837 | -8/Materials | Evolved 4 slots: Propulsion x1, Utility x2, Weapon x1 1998 | -8/Materials | Identified exit to Garrison 2001 | -8/Materials | Identified exit to Factory 2013 | -8/Materials | Entered Garrison 2138 | -8/Garrison | Triggered checkpoint 2172 | -8/Garrison | Garrison Relay disabled 2290 | -8/Garrison | Triggered checkpoint 2358 | -8/Garrison | Discovered new exit (range 10) 2460 | -8/Garrison | Build established: Hauler-Skirmisher 2468 | -8/Garrison | Triggered checkpoint 2489 | -8/Garrison | Garrison Relay disabled 2682 | -8/Garrison | Triggered checkpoint 2755 | -8/Garrison | Discovered new exit (range 8) 2856 | -8/Garrison | Triggered checkpoint 2954 | -8/Garrison | Lost 4 parts (2n1u1w) 2986 | -8/Garrison | Discovered new exit (range 11) 3013 | -8/Garrison | Installed Relay Interface Framework 3074 | -8/Garrison | Triggered checkpoint 3155 | -8/Garrison | Garrison Relay disabled 3230 | -8/Garrison | Entered Materials 3451 | -8/Materials | Build established: Bothacker-Skirmisher 3679 | -8/Materials | Discovered exit to Factory (range 13) 3743 | -8/Materials | Entered Factory 3743 | -7/Factory | Evolved 2 slots: Utility x2 4132 | -7/Factory | Discovered new exit (range 19) 4521 | -7/Factory | Discovered new exit (range 8) 4577 | -7/Factory | Destroyed 8 combat bots 4579 | -7/Factory | Build established: Bothacker-Mutant 4614 | -7/Factory | Entered another Factory area 4614 | -6/Factory | Evolved 2 slots: Propulsion x1, Utility x1 5226 | -6/Factory | Garrison activated, responded to threat 5381 | -6/Factory | Discovered new exit (range 8) 5392 | -6/Factory | Entered another Factory area 5392 | -5/Factory | Accompanied by 1 ally 5392 | -5/Factory | Evolved 2 slots: Utility x2 5462 | -5/Factory | Build established: Hauler-Mutant 5487 | -5/Factory | Local fabrication network quarantined 5578 | -5/Factory | Fabricated Adv. Hacking Suite (x1) 5698 | -5/Factory | Discovered new exit (range 11) 6266 | -5/Factory | Discovered new exit (range 22) 6365 | -5/Factory | Lost 3 parts (1n2u) 6757 | -5/Factory | Assimilated P-70 Sage with FLK Orb 6976 | -5/Factory | Discovered new exit (range 15) 7029 | -5/Factory | Repaired Hvy. Assault Rifle 7083 | -5/Factory | Discovered new exit (range 13) 7318 | -5/Factory | Repaired Greatsword 7801 | -5/Factory | Garrison activated, responded to threat 7912 | -5/Factory | Lost 4 parts (3u1w) 7926 | -5/Factory | Discovered new exit (range 9) 7947 | -5/Factory | Identified exit to Garrison 7948 | -5/Factory | Entered Garrison 8047 | -5/Garrison | Garrison Relay disabled 8126 | -5/Garrison | Triggered checkpoint 8156 | -5/Garrison | Discovered new exit (range 15) 8178 | -5/Garrison | Expanded RIF knowledge: Structural Interface 8218 | -5/Garrison | Triggered checkpoint 8249 | -5/Garrison | Garrison Relay disabled 8302 | -5/Garrison | Triggered checkpoint 8305 | -5/Garrison | Triggered checkpoint 8358 | -5/Garrison | Assimilated L-41 Fighter with FLK Orb 8460 | -5/Garrison | Triggered checkpoint 8474 | -5/Garrison | Garrison Relay disabled 8556 | -5/Garrison | Build established: Bothacker-Mutant 8575 | -5/Garrison | Discovered new exit (range 8) 8718 | -5/Garrison | Entered Factory 8718 | -5/Factory | Accompanied by 1 ally 8840 | -5/Factory | Fabricated Adv. Hacking Suite (x1) 9228 | -5/Factory | Spotted B-75 Beast 9229 | -5/Factory | Assimilated Beast 6a with formatsys_high 9245 | -5/Factory | Discovered new exit (range 144) 9407 | -5/Factory | Core integrity fell below 50% 9450 | -5/Factory | Lost 3 parts (1p1n1w) 9474 | -5/Factory | Discovered new exit (range 7) 10225 | -5/Factory | Fabricated Adv. Hacking Suite? 10321 | -5/Factory | Identified exit to Upper Caves 10321 | -5/Factory | Identified exit to Extension 10432 | -5/Factory | Repaired Prc. Assault Rifle 10523 | -5/Factory | Entered another Factory area 10523 | -4/Factory | Evolved 2 slots: Weapon x2 10707 | -4/Factory | Build established: Hacker-Mutant 10864 | -4/Factory | Fabricated Hcp. Storage Unit (x1) 11063 | -4/Factory | Identified exit to Research 11241 | -4/Factory | Repaired Arm. Huge Wheel 11487 | -4/Factory | Entered Research 11487 | -3/Research | Evolved 2 slots: Utility x2 11517 | -3/Research | Build established: Hacker-Skirmisher 12180 | -3/Research | Discovered new exit (range 6) 12188 | -3/Research | Identified exit to Armory 12325 | -3/Research | System corruption reached 10% 12427 | -3/Research | Build established: Hacker-Mutant 12490 | -3/Research | Discovered new exit (range 5) 12495 | -3/Research | Identified exit to Research 12499 | -3/Research | Discovered new exit (range 17) 12522 | -3/Research | Entered another Research area 12522 | -2/Research | Evolved 2 slots: Utility x2 12881 | -2/Research | Discovered new exit (range 73) 13156 | -2/Research | Lost 4 parts (2u2w) 13264 | -2/Research | Lost 3 parts (1u2w) 13299 | -2/Research | System corruption reached 10% 13435 | -2/Research | Spotted B-90 Cyclops 13555 | -2/Research | Lost 6 parts (1n2u3w) 13577 | -2/Research | Assimilated P-80 Master with FLK Orb 13625 | -2/Research | Lost 3 parts (1p1n1w) 13679 | -2/Research | Core integrity fell below 50% 13690 | -2/Research | Core integrity fell below 20% 13716 | -2/Research | Lost 15 parts (5p1n4u5w) 13716 | -2/Research | Spotted B-90 Cyclops 13719 | -2/Research | Self-destructed Last Messages --------------- 13686_ The unstable cave ceiling collapses. 13686_ Dropped Remote Datajack. 13686_ U-05 Engineer lays Concrete. 13686_ Penetrated by Slug. 13686_ U-05 Engineer lays Concrete. 13686_ Dropped Hardcell Cannon. 13686_ Penetrated by Slug. 13686_ Slug penetrates U-05 Engineer. 13687_ Dropped Mic. Fission Core. 13687_ U-05 Engineer lays Concrete. 13687_ Dropped Hcp. Storage Unit. 13688_ U-05 Engineer builds a Wall. 13688_ U-05 Engineer lays Concrete. 13690_ The unstable cave ceiling collapses. 13690_ Penetrated by Slug. 13691_ U-05 Engineer builds a Wall. 13691_ Penetrated by Slug. 13691_ R-10 Processor collects Terrain Scan Processor. 13692_ The unstable cave ceiling collapses. 13716_ Greatsword destroyed. Map ----- +----------------------------------------------------+ | ######+#### #?????#= #????????????????? | | # = ####+############ ###????????????????? | | # # ## = # #??????????????????? | | # # ## # #??????????????????? | | # """ # ##!!! ] + #??????????????????? | | # """ # ##!!! # ###########????????? | | + """ # ##!!! # # #????????? | | # # = ## # # #????????? | | # ######### # #????????? | | # #???????# # #????????? | | #???????# # #????????? | | #???????# # #????????? | | ????????# # #????????? | | / # ###?????????# # #????????? | | ] !!] #?????????# g#####/########?????? | | !!!** #??######## g #BB# ??????? | | # |!* ###### # #BB# #######?????? | | # # #####???????? | | # ##h # + ## #???????? | | # # h # [ # ! ## ## ????? | | = ## # # BB t ????? | | ## ## h #| # ! g BB #??????? | | ! # ######### h######## gA #??????? | | ## #?####### # # #??????? | | ## gg # #??????? | | ##?# #g @;#######p != #??????? | | ???################## g ##?????# =! #??????? | | ????????????????????#= #??????# #??????? | | ????????????????????# #??????# ###????? | | ????????????????????# #??????# #????? | | ????????????????????####;##??????# ?????? | | ???????????????????????# #???????# p #????? | | ???????????????????????#;#???????# ########????? | | ???????????????????????#"#???????# #???????????? | | ???????????????????????#"#???????# #???????????? | | ??????????????????????? "T#?????## ##??????????? | | ??????????????????????? ####### ########???? | | ??????????????????????? #???? | | ??????????????????????? Y #???? | | ?????????????????????? #???? | | ?????????????????????? ####### #### #???? | | ??????????????????????" " #?????#######??# #???? | | ??????????????????????"#"##??????????????# #???? | | ??????????????????????"?"????????????????# ##### | | ??????????????????????#??????????????????# | | ?????????????????????????????????????????# | | ?????????????????????????????????????????# | | ?????????????????????????????????????????#######+# | | ?????????????????????????????????????????????# | | ?????????????????????????????????????????????# | +----------------------------------------------------+ Best States ------------- Heat Dissipation 77 Energy Generation 25 Energy Capacity 340 Matter Stores 550 Matter Capacity 550 Sight Range 22 Terrain Scan Density 10 Base Temperature (-) 200 Armor Coverage 750 Resistance: KI 30 Resistance: EM 20 Propulsion Shielding 66 Evasion (%) 50 Targeting Accuracy 8 Matter Filtering 30 Offensive Hacking 40 Relay Coupler Types 38 Relay Coupler Value 2 Item Schematics ----------------- Hcp. Storage Unit | -8/Materials | Hacked Adv. Hacking Suite | -6/Factory | Hacked Prc. Assault Rifle | -5/Factory | Scanalyzed Arm. Huge Wheel | -4/Factory | Hacked Robot Schematics ------------------ None Fabricated ------------ Adv. Hacking Suite | x1 | -5/Factory Adv. Hacking Suite | x1 | -5/Factory Adv. Hacking Suite | x1 | -5/Factory Hcp. Storage Unit | x1 | -4/Factory Alien Tech Used ----------------- None Achievements -------------- GoHome() Challenges ------------ None Game ------ Seed ProtonResetDatajack Manual? 0 Play Time 04:37:50 Cumulative 310.7 hours Start 2020.09.21 @ 10:38:08 End 2020.11.10 @ 13:18:35 Sessions 10 Manual Loads 0 Difficulty Rogue Special Mode None Game No. 130 Rogue 107 Adventurer 23 Explorer 0 Win Type - Total 1 Types 1/0/0/0/0/0/0/0/0 Lore% 35 Gallery% 56 Achievement% 40 Wizard Run 0 Options --------- ASCII 0 Keyboard 1 Movement Vi Keybinds 0 Fullscreen 1 Font 12/Tallcaps Map View 83x54 Tactical HUD 1 Map Filters NONE Filters NONE Steam 0 RUN: 37899858-f19e-47de-a892-c5fda797a98e